bitfinex-derivatives/quotes_SOLF0:USTF0_20250529
["timestamp","ask_amount","ask_price","bid_price","bid_amount"]
[1748530398683,5.9488,170.63,170.55,5.90200017]
[1748530399082,5.861,170.58,170.55,0.04030017]
[1748530399777,5.8613,170.57,170.55,0.04030017]
[1748530400081,15.82371944,170.63,170.55,0.04030017]
[1748530400677,5.8614,170.56,170.55,0.04030017]
[1748530401177,5.8612,170.57,170.55,0.04030017]
[1748530401382,35.62,170.59,170.55,0.04030017]
[1748530401979,5.8613,170.57,170.55,0.04030017]
[1748530402179,35.62,170.59,170.55,0.04030017]
[1748530402387,5.8608,170.58,170.55,0.04030017]
[1748530403685,5.8611,170.57,170.55,0.04030017]
[1748530404282,5.8614,170.56,170.55,0.04030017]
[1748530404782,5.8622,170.54,170.51,5.863]
[1748530405088,45.49491944,170.59,170.49,35.64]
[1748530405387,5.8617,170.56,170.49,35.64]
[1748530405785,0.04260781,170.54,170.53,5.8622]
[1748530406089,0.04260781,170.54,170.51,0.03762865]
[1748530406282,0.04260781,170.54,170.52,5.8626]
[1748530406681,5.90470781,170.54,170.51,0.03762865]
[1748530406883,0.04260781,170.54,170.51,0.03762865]
[1748530407490,5.8627,170.52,170.51,0.03762865]
[1748530408687,5.8625,170.53,170.51,0.03762865]
[1748530408889,0.04260781,170.54,170.51,0.03762865]
[1748530410083,5.8627,170.52,170.51,0.03762865]
[1748530411186,0.04260781,170.54,170.51,0.03762865]
[1748530411692,5.8627,170.52,170.51,0.03762865]
[1748530411886,0.04260781,170.54,170.51,0.03762865]
[1748530412695,5.8626,170.53,170.51,0.03762865]
[1748530413086,0.04260781,170.54,170.51,0.03762865]
[1748530413280,5.90480781,170.54,170.51,5.90052865]
[1748530413487,0.04260781,170.54,170.51,0.03762865]
[1748530414889,0.04260781,170.54,170.53,5.8624]
[1748530415298,5.8602,170.6,170.56,5.8613]
[1748530415589,37.6239,170.62,170.51,2.0941]
[1748530415987,5.8606,170.59,170.55,5.8615]
[1748530416190,37.6239,170.62,170.55,0.0397659]
[1748530416897,5.8604,170.59,170.55,5.9012659]
[1748530417990,5.8601,170.6,170.55,5.9012659]
[1748530418492,5.8604,170.59,170.55,5.9012659]
[1748530418995,37.6239,170.62,170.55,0.0397659]
[1748530419397,37.6239,170.62,170.55,5.9014659]
[1748530419597,37.6239,170.62,170.55,0.0397659]
[1748530419895,47.49881944,170.62,170.55,0.0397659]
[1748530420493,47.49881944,170.62,170.46,38.4945]
[1748530420494,9.87491944,170.59,170.46,38.4945]
[1748530420685,5.8624,170.53,170.46,38.4945]
[1748530420889,36.46,170.56,170.46,38.4945]
[1748530421498,0.03712768,170.53,170.49,0.03932451]
[1748530421998,5.89952768,170.53,170.5,5.8632]
[1748530422797,5.89952768,170.53,170.51,5.8629]
[1748530422798,0.03712768,170.53,170.51,5.8629]
[1748530423709,5.89952768,170.53,170.5,5.8633]
[1748530423903,0.03712768,170.53,170.49,0.03932451]
[1748530424402,5.89962768,170.53,170.5,5.8631]
[1748530424604,0.03712768,170.53,170.49,0.03932451]
[1748530425205,0.03712768,170.53,170.52,5.8627]
[1748530425402,0.03712768,170.53,170.49,0.03932451]
[1748530425810,0.03712768,170.53,170.51,5.8629]
[1748530426012,0.03712768,170.53,170.49,0.03932451]
[1748530426203,0.03712768,170.53,170.51,5.8628]
[1748530427507,0.03712768,170.53,170.5,5.8634]
[1748530428012,0.03712768,170.53,170.51,5.863]
[1748530429111,0.03712768,170.53,170.52,5.8627]
[1748530429911,543.32,170.64,170.55,5.8616]
[1748530430105,4.0624,170.63,170.55,5.8616]
[1748530430611,4.0624,170.63,170.51,36.48]
[1748530430907,4.0624,170.63,170.52,1.9376]
[1748530431107,7.8433,170.62,170.55,0.03852754]
[1748530431312,4.0624,170.63,170.55,0.03852754]
[1748530432106,36.46,170.67,170.55,0.03852754]
[1748530432306,38.3633,170.67,170.59,0.0433426]
[1748530433210,5.8582,170.66,170.6,5.8599]
[1748530433405,38.3633,170.67,170.59,0.0433426]
[1748530436204,2.0115,170.68,170.59,0.0433426]
[1748530436407,36.46,170.72,170.59,2.0879426]
[1748530436613,36.46,170.72,170.64,0.03976185]
[1748530436810,2.0495,170.71,170.64,0.03976185]
[1748530437912,5.8575,170.68,170.64,0.03976185]
[1748530438112,2.0495,170.71,170.64,0.03976185]
[1748530438514,5.8569,170.69,170.64,5.89836185]
[1748530438912,5.8569,170.69,170.65,5.8582]
[1748530440018,5.8569,170.69,170.64,0.03976185]
[1748530440019,2.0495,170.71,170.64,0.03976185]
[1748530441012,11.92441944,170.71,170.64,0.03976185]
[1748530442418,5.8583,170.65,170.64,0.03976185]
[1748530442715,36.46,170.67,170.54,38.4857]
[1748530442909,5.8596,170.62,170.54,38.4857]
[1748530443110,2.0995,170.66,170.54,38.4857]
[1748530443310,1.9672,170.65,170.54,38.4857]
[1748530443511,0.04461241,170.61,170.58,0.04185585]
[1748530444117,0.04461241,170.61,170.6,5.86]
[1748530445119,2.0076,170.72,170.59,36.46]
[1748530445314,5.8572,170.69,170.6,4.0397]
[1748530445511,36.46,170.71,170.6,4.0397]
[1748530445922,5.8574,170.68,170.63,5.8589]
[1748530446123,5.8574,170.68,170.64,0.03935364]
[1748530446820,38.5348,170.71,170.64,0.03935364]
[1748530447918,5.8578,170.67,170.64,5.89795364]
[1748530448117,38.5348,170.71,170.64,5.89795364]
[1748530448418,38.5348,170.71,170.64,0.03935364]
[1748530448810,5.8574,170.68,170.65,5.8583]
[1748530449013,5.8574,170.68,170.64,0.03935364]
[1748530449209,38.5348,170.71,170.64,0.03935364]
[1748530449812,5.8572,170.69,170.65,5.8582]
[1748530450322,5.8573,170.68,170.64,5.89775364]
[1748530451019,5.8573,170.68,170.65,5.8583]
[1748530451522,2.0748,170.71,170.64,0.03935364]
[1748530452623,5.8571,170.69,170.65,5.8582]
[1748530453324,2.0748,170.71,170.64,0.03935364]
[1748530453526,39.8148,170.71,170.64,0.03935364]
[1748530453721,5.8579,170.67,170.64,0.03935364]
[1748530454621,39.8148,170.71,170.64,0.03935364]
[1748530455728,5.8575,170.68,170.64,5.89775364]
[1748530456425,5.8577,170.67,170.64,0.03935364]
[1748530456625,39.8148,170.71,170.64,0.03935364]
[1748530456824,5.8572,170.69,170.65,5.8581]
[1748530457226,39.8148,170.71,170.64,0.03935364]
[1748530457420,45.6712,170.71,170.64,0.03935364]
[1748530457727,37.74,170.77,170.64,47.65427308]
[1748530457924,11.86705288,170.74,170.7,5.8564]
[1748530458228,11.86705288,170.74,170.7,5.90086676]
[1748530458426,6.01175288,170.74,170.71,5.8562]
[1748530458626,6.01175288,170.74,170.7,0.04446676]
[1748530460136,6.01175288,170.74,170.72,5.8558]
[1748530460335,6.01175288,170.74,170.7,0.04446676]
[1748530462835,6.01175288,170.74,170.73,5.8555]
[1748530464131,1.9804,170.8,170.7,9.9193862]
[1748530464532,41.1959,170.84,170.7,9.9193862]
[1748530464533,5.8531,170.81,170.7,9.9193862]
[1748530464727,5.8531,170.81,170.74,0.04290842]
[1748530464923,41.1959,170.84,170.74,0.04290842]
[1748530465125,5.8533,170.8,170.74,0.04290842]
[1748530465325,5.8533,170.8,170.75,5.8546]
[1748530465837,5.8533,170.8,170.76,5.8545]
[1748530466137,41.1959,170.84,170.74,0.04290842]
[1748530466528,5.8528,170.82,170.77,5.854]
[1748530466728,5.8528,170.82,170.78,0.04488051]
[1748530466928,41.1959,170.84,170.78,0.04488051]
[1748530467730,5.8529,170.81,170.78,0.04488051]
[1748530468937,41.1959,170.84,170.78,0.04488051]
[1748530470034,41.1959,170.84,170.78,5.89878051]
[1748530470634,5.8531,170.81,170.78,5.89878051]
[1748530471143,5.8526,170.82,170.79,5.8535]
[1748530471532,41.1959,170.84,170.78,0.04488051]
[1748530471841,41.1959,170.84,170.78,5.89878051]
[1748530472037,41.1959,170.84,170.78,0.04488051]
[1748530472243,41.1959,170.84,170.78,5.89858051]
[1748530472540,41.1959,170.84,170.78,0.04488051]
[1748530472934,41.1959,170.84,170.8,5.8532]
[1748530473131,41.1959,170.84,170.78,0.04488051]
[1748530473331,5.8529,170.81,170.78,5.89848051]
[1748530473636,41.1959,170.84,170.78,0.04488051]
[1748530474437,47.048,170.84,170.78,0.04488051]
[1748530474642,41.1959,170.84,170.78,0.04488051]
[1748530475735,5.8524,170.83,170.78,0.04488051]
[1748530475942,41.1959,170.84,170.78,0.04488051]
[1748530476239,2.0159,170.84,170.78,0.04488051]
[1748530476941,5.8528,170.81,170.78,0.04488051]
[1748530477142,2.0159,170.84,170.78,0.04488051]
[1748530478443,11.89081944,170.84,170.78,0.04488051]
[1748530478646,5.8535,170.79,170.78,0.04488051]
[1748530480349,5.8543,170.77,170.74,5.8551]
[1748530480544,40.86,170.83,170.73,5.8555]
[1748530480849,9.87491944,170.81,170.69,40.86]
[1748530481248,0.04172666,170.77,170.73,0.04453059]
[1748530481645,0.04172666,170.77,170.65,40.86]
[1748530481840,2.0853,170.77,170.67,5.8575]
[1748530482043,2.0853,170.77,170.65,50.73491944]
[1748530482449,2.0853,170.77,170.7,5.8566]
[1748530482654,0.04141195,170.75,170.72,0.04503029]
[1748530482852,5.8555,170.74,170.72,0.04503029]
[1748530483347,0.04141195,170.75,170.72,0.04503029]
[1748530484346,5.8556,170.73,170.72,0.04503029]
[1748530484945,5.8569,170.7,170.67,5.8574]
[1748530485251,40.86,170.73,170.62,506.12]
[1748530485650,5.8569,170.7,170.66,5.8577]
[1748530485847,0.04491559,170.7,170.66,5.90053893]
[1748530486246,0.04491559,170.7,170.66,0.04283893]
[1748530486954,5.90171559,170.7,170.67,5.8576]
[1748530489259,0.04491559,170.7,170.66,0.04283893]
[1748530489755,5.857,170.69,170.66,5.90073893]
[1748530490161,0.04491559,170.7,170.66,0.04283893]
[1748530492150,5.8572,170.69,170.66,5.90083893]
[1748530492349,0.04491559,170.7,170.66,0.04283893]
[1748530493352,5.8573,170.68,170.66,0.04283893]
[1748530493548,0.04491559,170.7,170.66,0.04283893]
[1748530493751,5.8576,170.67,170.66,0.04283893]
[1748530496552,5.8595,170.62,170.56,40.88]
[1748530496751,9.87491944,170.66,170.58,5.8605]
[1748530496956,9.87491944,170.66,170.56,40.88]
[1748530497153,1.9498,170.65,170.56,40.88]
[1748530497558,5.90020716,170.62,170.59,0.03706795]
[1748530498361,5.90020716,170.62,170.59,5.89726795]
[1748530498663,0.04050716,170.62,170.59,5.89726795]
[1748530499057,0.04050716,170.62,170.6,5.86]
[1748530499257,5.90000716,170.62,170.59,0.03706795]
[1748530499460,5.90000716,170.62,170.59,5.89726795]
[1748530500765,5.8597,170.61,170.59,5.89726795]
[1748530501061,0.04050716,170.62,170.59,0.03706795]
[1748530501763,9.87491944,170.61,170.5,1.9053]
[1748530501961,2.0949,170.6,170.48,40.9]
[1748530502167,2.0949,170.6,170.52,5.8626]
[1748530502361,9.87491944,170.58,170.45,1.9096]
[1748530502668,9.87491944,170.55,170.44,1.9742]
[1748530502960,0.04410645,170.51,170.48,0.03755737]
[1748530503556,0.04410645,170.51,170.5,5.8635]
[1748530505363,0.04410645,170.51,170.48,0.03755737]
[1748530505867,0.04410645,170.51,170.48,5.90155737]
[1748530506065,0.04410645,170.51,170.48,0.03755737]
[1748530508468,0.04410645,170.51,170.49,5.8638]
[1748530508665,0.04410645,170.51,170.48,0.03755737]
[1748530509368,0.04410645,170.51,170.5,5.8635]
[1748530518080,0.04410645,170.51,170.48,0.03755737]
[1748530518478,0.04410645,170.51,170.49,5.8636]
[1748530520081,5.90720645,170.51,170.48,5.90155737]
[1748530520287,0.04410645,170.51,170.48,5.90155737]
[1748530520484,0.04410645,170.51,170.48,0.03755737]
[1748530520789,0.04410645,170.51,170.49,5.8635]
[1748530521178,0.04410645,170.51,170.5,5.8635]
[1748530522487,0.04410645,170.51,170.49,5.8637]
[1748530522887,0.04410645,170.51,170.48,0.03755737]
[1748530523693,0.04410645,170.51,170.5,5.8635]
[1748530524487,0.04410645,170.51,170.49,5.8636]
[1748530525289,0.04410645,170.51,170.5,5.8635]
[1748530525484,0.04410645,170.51,170.48,0.03755737]
[1748530525793,0.04410645,170.51,170.49,5.8636]
[1748530526292,0.04410645,170.51,170.48,0.03755737]
[1748530526493,0.04410645,170.51,170.5,5.8635]
[1748530526993,0.04410645,170.51,170.49,5.8637]
[1748530527188,0.04410645,170.51,170.48,0.03755737]
[1748530527488,0.04410645,170.51,170.5,5.8635]
[1748530529795,0.04410645,170.51,170.48,0.03755737]
[1748530531297,0.04410645,170.51,170.48,5.90145737]
[1748530531796,5.90720645,170.51,170.48,5.90145737]
[1748530532393,5.8636,170.5,170.48,0.03755737]
[1748530532597,0.04410645,170.51,170.48,0.03755737]
[1748530533401,5.8637,170.5,170.48,0.03755737]
[1748530535099,0.04410645,170.51,170.48,5.90165737]
[1748530535500,0.04410645,170.51,170.48,0.03755737]
[1748530535700,5.8635,170.5,170.48,0.03755737]
[1748530536409,5.90740645,170.51,170.48,5.90145737]
[1748530537099,5.90740645,170.51,170.48,0.03755737]
[1748530537800,0.04410645,170.51,170.48,0.03755737]
[1748530538604,0.04410645,170.51,170.5,5.8635]
[1748530538908,0.04410645,170.51,170.48,0.03755737]
[1748530539408,0.04410645,170.51,170.49,5.8636]
[1748530540108,0.04410645,170.51,170.48,0.03755737]
[1748530540707,5.8635,170.5,170.48,0.03755737]
[1748530542812,5.90740645,170.51,170.48,0.03755737]
[1748530543410,5.90740645,170.51,170.48,5.90165737]
[1748530544814,0.04410645,170.51,170.48,0.03755737]
[1748530545409,0.04410645,170.51,170.5,5.8635]
[1748530546207,0.04410645,170.51,170.48,0.03755737]
[1748530547015,0.04410645,170.51,170.49,5.8636]
[1748530547516,0.04410645,170.51,170.48,5.90145737]
[1748530547716,0.04410645,170.51,170.48,0.03755737]
[1748530548611,0.04410645,170.51,170.49,5.8637]
[1748530549015,0.04410645,170.51,170.5,5.8635]
[1748530549217,0.04410645,170.51,170.48,0.03755737]
[1748530550418,0.04410645,170.51,170.49,5.8636]
[1748530551816,0.04410645,170.51,170.48,5.90155737]
[1748530552014,5.90730645,170.51,170.48,5.90155737]
[1748530552420,0.04410645,170.51,170.48,0.03755737]
[1748530555322,0.04410645,170.51,170.49,5.8636]
[1748530555526,0.04410645,170.51,170.48,0.03755737]
[1748530556119,5.90740645,170.51,170.48,0.03755737]
[1748530558528,5.90740645,170.51,170.48,5.90165737]
[1748530558932,5.90740645,170.51,170.48,0.03755737]
[1748530559625,5.8635,170.5,170.48,0.03755737]
[1748530560125,0.04410645,170.51,170.5,5.8634]
[1748530562025,38.9149,170.6,170.55,5.8617]
[1748530562227,36.82,170.6,170.48,9.87491944]
[1748530562728,5.8603,170.59,170.55,5.8615]
[1748530563025,5.90317935,170.59,170.55,5.90028522]
[1748530564133,0.04287935,170.59,170.55,5.90028522]
[1748530564336,0.04287935,170.59,170.55,0.03878522]
[1748530565931,5.90337935,170.59,170.55,5.90028522]
[1748530566427,0.04287935,170.59,170.55,0.03878522]
[1748530567739,5.90327935,170.59,170.55,5.90038522]
[1748530569333,5.8608,170.58,170.55,0.03878522]
[1748530569733,0.04287935,170.59,170.55,0.03878522]
[1748530569929,5.8614,170.56,170.55,0.03878522]
[1748530575535,42.6814,170.56,170.55,0.03878522]
[1748530575842,36.82,170.56,170.55,0.03878522]
[1748530576133,0.04287935,170.59,170.55,0.03878522]
[1748530576930,0.04287935,170.59,170.58,5.8607]
[1748530579439,36.82,170.64,170.56,6.1473]
[1748530579741,36.82,170.64,170.56,42.9673]
[1748530579939,36.82,170.64,170.61,5.8596]
[1748530580240,5.858,170.66,170.61,5.8596]
[1748530580439,0.04107104,170.65,170.62,0.03789071]
[1748530581339,5.8586,170.64,170.62,0.03789071]
[1748530582329,5.859,170.63,170.62,0.03789071]
[1748530583643,5.8587,170.64,170.62,0.03789071]
[1748530583837,0.04107104,170.65,170.62,0.03789071]
[1748530584442,5.89957104,170.65,170.62,0.03789071]
[1748530585338,5.89957104,170.65,170.62,5.89719071]
[1748530585539,0.04107104,170.65,170.62,5.89719071]
[1748530586542,0.04107104,170.65,170.62,0.03789071]
[1748530587638,0.04107104,170.65,170.63,5.859]
[1748530588241,0.04107104,170.65,170.64,5.8587]
[1748530588744,0.04107104,170.65,170.62,0.03789071]
[1748530589646,0.04107104,170.65,170.64,5.8587]
[1748530593147,5.80526,170.68,170.67,5.8576]
[1748530593546,38.1532,170.76,170.65,9.87491944]
[1748530593752,11.7011,170.88,170.66,36.24]
[1748530593943,9.87491944,170.85,170.69,9.87491944]
[1748530594246,0.04513014,170.79,170.75,0.04408858]
[1748530594447,5.89883014,170.79,170.75,0.04408858]
[1748530594647,0.04513014,170.79,170.75,0.04408858]
[1748530596641,0.04513014,170.79,170.77,5.854]
[1748530597045,0.04513014,170.79,170.75,0.04408858]
[1748530597247,0.04513014,170.79,170.78,5.8539]
[1748530598848,5.8515,170.85,170.79,5.8533]
[1748530599348,5.7061,170.88,170.77,1.9394]
[1748530599749,5.8511,170.86,170.8,5.8531]
[1748530599950,0.04374887,170.85,170.81,0.0399651]
[1748530600143,0.04374887,170.85,170.82,5.8525]
[1748530600448,0.04374887,170.85,170.81,0.0399651]
[1748530601644,5.89524887,170.85,170.81,0.0399651]
[1748530601847,0.04374887,170.85,170.81,0.0399651]
[1748530602044,5.89534887,170.85,170.81,0.0399651]
[1748530602244,0.04374887,170.85,170.81,0.0399651]
[1748530602746,0.04374887,170.85,170.81,5.8925651]
[1748530604351,0.04374887,170.85,170.81,0.0399651]
[1748530604954,5.89534887,170.85,170.81,0.0399651]
[1748530605154,0.04374887,170.85,170.81,0.0399651]
[1748530605556,5.89544887,170.85,170.81,0.0399651]
[1748530606152,0.04374887,170.85,170.81,0.0399651]
[1748530607451,36.22,170.9,170.81,36.2399651]
[1748530608245,7.8558,170.91,170.85,5.8512]
[1748530608447,7.8558,170.91,170.86,0.03767713]
[1748530608853,2.0063,170.91,170.86,0.03767713]
[1748530609447,5.8498,170.9,170.86,0.03767713]
[1748530610645,5.8498,170.9,170.86,5.88877713]
[1748530610850,36.2,170.93,170.86,0.03767713]
[1748530612456,36.2,170.93,170.86,5.88877713]
[1748530612955,36.2,170.93,170.86,0.03767713]
[1748530613652,5.85,170.9,170.86,0.03767713]
[1748530613857,36.2,170.93,170.86,0.03767713]
[1748530614752,5.8503,170.89,170.86,0.03767713]
[1748530614953,36.2,170.93,170.86,0.03767713]
[1748530616658,5.8502,170.89,170.86,0.03767713]
[1748530616858,36.2,170.93,170.86,0.03767713]
[1748530617253,5.8497,170.91,170.86,0.03767713]
[1748530617555,36.2,170.93,170.86,0.03767713]
[1748530618955,5.8493,170.92,170.86,0.03767713]
[1748530619361,5.8493,170.92,170.87,5.8505]
[1748530619559,5.8497,170.9,170.86,0.03767713]
[1748530619754,36.2,170.93,170.86,0.03767713]
[1748530619959,5.8497,170.91,170.86,5.88867713]
[1748530620154,36.2,170.93,170.86,0.03767713]
[1748530620556,5.85,170.9,170.86,0.03767713]
[1748530621660,5.85,170.9,170.86,5.88877713]
[1748530622066,36.2,170.93,170.86,0.03767713]
[1748530622760,9.87491944,170.92,170.86,0.03767713]
[1748530622964,36.2,170.93,170.86,0.03767713]
[1748530623165,46.07491944,170.93,170.86,0.03767713]
[1748530623559,36.2,170.93,170.86,0.03767713]
[1748530623859,9.87491944,170.92,170.86,0.03767713]
[1748530625167,5.8498,170.9,170.86,0.03767713]
[1748530625465,36.2,170.93,170.86,0.03767713]
[1748530627663,5.8496,170.91,170.87,5.8506]
[1748530627860,36.2,170.93,170.86,0.03767713]
[1748530628466,5.8492,170.92,170.87,5.8505]
[1748530628867,5.8494,170.91,170.87,5.8505]
[1748530629269,36.2,170.93,170.86,5.88867713]
[1748530629469,36.2,170.93,170.86,0.03767713]
[1748530629863,36.2,170.93,170.87,5.8506]
[1748530630262,36.2,170.93,170.86,0.03767713]
[1748530630469,5.8491,170.92,170.86,0.03767713]
[1748530631268,5.8491,170.92,170.87,5.8506]
[1748530631670,42.0488,170.93,170.86,0.03767713]
[1748530632478,9.7558,170.94,170.86,0.03767713]
[1748530632776,3.9073,170.94,170.86,0.03767713]
[1748530632972,3.9073,170.94,170.89,5.8499]
[1748530633178,3.9073,170.94,170.9,0.04483649]
[1748530633978,5.8488,170.93,170.9,0.04483649]
[1748530634167,3.9073,170.94,170.9,5.89453649]
[1748530634779,9.7559,170.94,170.9,5.89453649]
[1748530635171,3.9073,170.94,170.9,0.04483649]
[1748530635772,3.9073,170.94,170.91,5.8492]
[1748530635972,3.9073,170.94,170.9,0.04483649]
[1748530637073,35.82,170.96,170.9,0.04483649]
[1748530637277,35.82,170.96,170.92,5.8488]
[1748530637581,35.82,170.96,170.9,0.04483649]
[1748530637781,41.6679,170.96,170.91,5.8492]
[1748530638279,41.6679,170.96,170.9,0.04483649]
[1748530638280,35.82,170.96,170.9,0.04483649]
[1748530638982,35.82,170.96,170.91,5.8492]
[1748530639382,5.8486,170.94,170.9,5.89453649]
[1748530639583,35.82,170.96,170.9,0.04483649]
[1748530640585,5.8486,170.94,170.9,5.89433649]
[1748530641487,5.8486,170.94,170.91,5.8493]
[1748530642286,5.8486,170.94,170.9,0.04483649]
[1748530642882,35.82,170.96,170.9,0.04483649]
[1748530643387,3.9001,170.97,170.94,5.8482]
[1748530643585,3.9001,170.97,170.94,0.04074222]
[1748530643882,35.82,170.99,170.94,0.04074222]
[1748530644084,35.82,170.99,170.96,5.8474]
[1748530644284,35.82,170.99,170.94,0.04074222]
[1748530645685,3.885,170.98,170.94,0.04074222]
[1748530646577,9.732,170.98,170.94,5.88894222]
[1748530646778,3.885,170.98,170.94,0.04074222]
[1748530647286,3.885,170.98,170.95,5.848]
[1748530647480,3.885,170.98,170.94,0.04074222]
[1748530647879,9.732,170.98,170.94,5.88884222]
[1748530648589,9.732,170.98,170.95,5.848]
[1748530648789,3.885,170.98,170.95,5.848]
[1748530649292,9.7322,170.98,170.94,0.04074222]
[1748530649990,9.7322,170.98,170.94,5.88884222]
[1748530650688,9.7322,170.98,170.95,5.848]
[1748530650886,9.7322,170.98,170.94,0.04074222]
[1748530651187,5.8472,170.98,170.94,0.04074222]
[1748530651882,5.8472,170.98,170.94,5.88894222]
[1748530652078,35.8,171.02,170.94,0.04074222]
[1748530652282,9.87491944,171.01,170.94,0.04074222]
[1748530652491,9.87491944,171.01,170.95,5.848]
[1748530653488,9.87491944,171.01,170.96,5.8477]
[1748530654693,9.87491944,171.01,170.95,5.8479]
[1748530655094,9.87491944,170.98,170.94,0.04074222]
[1748530655292,1.9149,170.97,170.94,0.04074222]
[1748530655490,5.8484,170.94,170.9,35.82]
[1748530655692,5.8484,170.94,170.91,5.8492]
[1748530655993,5.8485,170.94,170.86,37.7082]
[1748530656184,5.8485,170.94,170.91,5.8492]
[1748530656387,5.88696666,170.94,170.91,5.8903389]
[1748530656988,5.8487,170.93,170.91,0.0411389]
[1748530657293,0.03846666,170.94,170.91,0.0411389]
[1748530657494,0.03846666,170.94,170.82,35.8]
[1748530657701,9.87491944,170.93,170.82,35.8]
[1748530657996,35.8,170.92,170.82,35.8]
[1748530658394,35.8,170.92,170.85,0.04161146]
[1748530658395,0.03868338,170.89,170.85,0.04161146]
[1748530658995,1.97038338,170.89,170.85,0.04161146]
[1748530659691,5.8511,170.86,170.85,0.04161146]
[1748530659890,1.97038338,170.89,170.85,0.04161146]
[1748530660288,5.851,170.87,170.85,0.04161146]
[1748530664092,1.97038338,170.89,170.85,0.04161146]
[1748530664898,9.87491944,170.88,170.76,3.9136]
[1748530665197,1.97038338,170.89,170.76,39.7336]
[1748530665198,5.8519,170.84,170.76,39.7336]
[1748530665496,9.87491944,170.85,170.76,39.7336]
[1748530665686,5.8519,170.84,170.81,5.8527]
[1748530665891,0.03794616,170.84,170.81,5.89107007]
[1748530666091,0.03794616,170.84,170.81,0.03837007]
[1748530666290,5.88984616,170.84,170.81,0.03837007]
[1748530666599,0.03794616,170.84,170.81,0.03837007]
[1748530666898,5.88994616,170.84,170.81,5.89097007]
[1748530667094,0.03794616,170.84,170.81,0.03837007]
[1748530667293,0.03794616,170.84,170.76,35.82]
[1748530667494,5.8531,170.81,170.77,5.8541]
[1748530667801,5.8531,170.81,170.76,35.82]
[1748530668191,5.8531,170.81,170.78,5.8536]
[1748530668396,5.89227248,170.81,170.78,5.89531602]
[1748530668601,0.03917248,170.81,170.78,5.89531602]
[1748530669094,0.03917248,170.81,170.7,35.82]
[1748530669295,35.82,170.82,170.72,3.9175]
[1748530669495,35.82,170.82,170.79,5.8533]
[1748530669697,35.82,170.82,170.72,3.9175]
[1748530669998,35.82,170.82,170.75,0.03718436]
[1748530669999,0.03847504,170.79,170.75,0.03718436]
[1748530670694,5.89207504,170.79,170.75,5.89188436]
[1748530670997,15.76699448,170.79,170.75,0.03718436]
[1748530671197,15.76699448,170.79,170.76,5.8543]
[1748530671599,15.76699448,170.79,170.75,0.03718436]
[1748530671801,5.89207504,170.79,170.75,0.03718436]
[1748530672006,15.76699448,170.79,170.75,0.03718436]
[1748530672295,15.76699448,170.79,170.75,5.89198436]
[1748530672495,9.87491944,170.76,170.68,78.99819815]
[1748530672703,9.87491944,170.76,170.67,35.84]
[1748530673000,5.8553,170.74,170.69,5.8569]
[1748530673191,9.87491944,170.76,170.69,5.8569]
[1748530673600,5.89599802,170.74,170.71,0.03924591]
[1748530673796,0.04049802,170.74,170.71,0.03924591]
[1748530674197,5.8558,170.73,170.71,0.03924591]
[1748530674395,35.8,170.72,170.53,505.62]
[1748530674598,5.8573,170.68,170.58,41.8079]
[1748530674796,9.87491944,170.7,170.58,41.8079]
[1748530675300,35.8,170.72,170.58,41.8079]
[1748530675499,0.03763679,170.67,170.63,0.03902395]
[1748530676002,0.03763679,170.67,170.66,5.858]
[1748530677395,0.03763679,170.67,170.65,5.8582]
[1748530677595,0.03763679,170.67,170.63,0.03902395]
[1748530677998,0.03763679,170.67,170.66,5.858]
[1748530684010,51.73811944,170.76,170.72,5.8559]
[1748530684410,57.59281944,170.76,170.65,1.9025]
[1748530684705,51.73811944,170.76,170.65,1.9025]
[1748530684911,51.73811944,170.76,170.65,3.8366]
[1748530685106,0.04482181,170.72,170.69,0.04251962]
[1748530685507,0.04482181,170.72,170.71,5.8562]
[1748530685809,0.04482181,170.72,170.69,0.04251962]
[1748530686313,0.04482181,170.72,170.7,5.8566]
[1748530687005,35.82,170.82,170.69,0.04251962]
[1748530687311,35.82,170.82,170.68,35.82]
[1748530687905,0.04264277,170.77,170.74,5.8549]
[1748530688211,0.04264277,170.77,170.73,0.04167017]
[1748530689211,0.04264277,170.77,170.76,5.8545]
[1748530690312,0.04264277,170.77,170.74,5.8551]
[1748530690506,0.04264277,170.77,170.73,0.04167017]